bitfinex-derivatives/quotes_SOLF0:USTF0_20240824
["timestamp","ask_amount","ask_price","bid_price","bid_amount"]
[1724505259208,3.173,157.51,157.5,3.11346192]
[1724505260002,3.173,157.51,157.49,0.041769]
[1724505261608,3.1731,157.5,157.49,0.041769]
[1724505261805,3.1731,157.5,157.49,3.15538502]
[1724505262007,3.1731,157.5,157.49,0.041769]
[1724505262805,10.9831,157.5,157.49,0.041769]
[1724505265003,3.1731,157.5,157.49,0.041769]
[1724505273220,3.173,157.51,157.49,0.041769]
[1724505273519,0.04077294,157.52,157.49,7.851769]
[1724505273716,3.21357294,157.52,157.49,11.025069]
[1724505274309,0.04077294,157.52,157.5,3.1731]
[1724505274516,0.04077294,157.52,157.49,7.851769]
[1724505275418,3.21347294,157.52,157.49,11.024969]
[1724505275918,0.04077294,157.52,157.5,7.81]
[1724505276914,0.04077294,157.52,157.5,3.1731]
[1724505277115,0.04077294,157.52,157.5,10.9831]
[1724505279318,0.04077294,157.52,157.49,3.214969]
[1724505280421,3.21347294,157.52,157.49,3.214969]
[1724505282323,3.1729,157.51,157.49,3.214969]
[1724505282525,3.1729,157.51,157.49,0.041769]
[1724505283326,3.1729,157.51,157.49,3.215069]
[1724505289023,7.85077294,157.52,157.49,0.041769]
[1724505289623,7.81,157.51,157.49,0.041769]
[1724505290337,3.1731,157.5,157.49,0.041769]
[1724505300537,0.04077294,157.52,157.49,0.041769]
[1724505300742,7.81,157.57,157.5,10.92275143]
[1724505301041,7.81,157.56,157.45,1.25]
[1724505301235,3.1727,157.52,157.48,10.9834]
[1724505301430,3.1727,157.52,157.49,3.11341259]
[1724505301636,0.04478371,157.52,157.49,3.11341259]
[1724505301842,0.04478371,157.52,157.49,3.15603527]
[1724505302034,0.04478371,157.52,157.49,0.04262268]
[1724505303341,0.04478371,157.52,157.5,3.1731]
[1724505306239,0.04478371,157.52,157.49,3.21582268]
[1724505306434,7.85478371,157.52,157.49,0.04262268]
[1724505307235,7.81,157.51,157.49,0.04262268]
[1724505308542,3.1731,157.5,157.49,0.04262268]
[1724505310639,0.04478371,157.52,157.49,0.04262268]
[1724505311146,0.04478371,157.52,157.51,7.81]
[1724505311740,0.04478371,157.52,157.51,10.9829]
[1724505312378,2.5715,157.61,157.51,10.92297688]
[1724505312576,2.5715,157.61,157.54,7.81]
[1724505312742,7.81,157.62,157.54,7.81]
[1724505313040,7.81,157.62,157.54,10.9821]
[1724505313245,7.81,157.62,157.56,7.81]
[1724505313448,0.04476433,157.61,157.57,0.0480347]
[1724505314246,3.1711,157.6,157.57,0.0480347]
[1724505315551,3.1713,157.59,157.57,0.0480347]
[1724505317550,3.1715,157.58,157.57,0.0480347]
[1724505317748,0.04476433,157.61,157.57,0.0480347]
[1724505318347,3.1711,157.6,157.57,0.0480347]
[1724505318550,0.04476433,157.61,157.57,0.0480347]
[1724505319343,3.1713,157.59,157.57,0.0480347]
[1724505326186,3.1715,157.58,157.57,0.0480347]
[1724505332571,3.1711,157.6,157.57,7.8580347]
[1724505332771,3.1711,157.6,157.58,7.81]
[1724505333165,3.1713,157.59,157.57,7.8580347]
[1724505334188,3.1713,157.59,157.57,0.0480347]
[1724505334369,7.85476433,157.61,157.57,0.0480347]
[1724505335064,3.1715,157.58,157.57,0.0480347]
[1724505336570,3.1713,157.59,157.57,0.0480347]
[1724505339072,3.1712,157.6,157.57,3.2196347]
[1724505341570,3.1712,157.6,157.57,7.8580347]
[1724505342167,3.1712,157.6,157.57,11.0297347]
[1724505342368,3.21576433,157.61,157.57,11.0297347]
[1724505342576,3.21576433,157.61,157.58,7.81]
[1724505342876,3.21576433,157.61,157.58,10.9815]
[1724505344604,0.04476433,157.61,157.59,3.1712]
[1724505344764,0.04476433,157.61,157.58,7.81]
[1724505345870,3.21576433,157.61,157.58,10.9814]
[1724505346072,0.04476433,157.61,157.57,7.8580347]
[1724505346777,3.1712,157.6,157.57,11.0296347]
[1724505348605,0.04476433,157.61,157.57,0.0480347]
[1724505349375,3.1712,157.6,157.57,0.0480347]
[1724505349573,0.04476433,157.61,157.57,0.0480347]
[1724505350079,3.1711,157.6,157.57,0.0480347]
[1724505351679,3.1711,157.6,157.57,7.8580347]
[1724505353185,3.1713,157.59,157.57,7.8580347]
[1724505353385,0.04476433,157.61,157.57,0.0480347]
[1724505353879,3.1713,157.59,157.57,0.0480347]
[1724505354077,0.04476433,157.61,157.57,0.0480347]
[1724505354386,0.04476433,157.61,157.57,7.8580347]
[1724505354887,3.21576433,157.61,157.58,3.1714]
[1724505359686,3.21576433,157.61,157.59,7.81]
[1724505360590,3.1711,157.6,157.57,11.0296347]
[1724505364182,3.1714,157.59,157.57,0.0480347]
[1724505364390,0.04476433,157.61,157.57,0.0480347]
[1724505364783,3.1714,157.59,157.57,0.0480347]
[1724505365294,3.1715,157.58,157.57,0.0480347]
[1724505366784,0.04476433,157.61,157.57,0.0480347]
[1724505367285,3.1713,157.6,157.57,3.2197347]
[1724505367593,3.1713,157.6,157.57,0.0480347]
[1724505367892,3.1713,157.6,157.57,7.8580347]
[1724505368885,3.1713,157.59,157.57,7.8580347]
[1724505369489,3.1713,157.59,157.57,0.0480347]
[1724505369790,3.1715,157.58,157.57,0.0480347]
[1724505372193,0.04476433,157.61,157.57,7.8580347]
[1724505372791,3.1711,157.6,157.57,11.0295347]
[1724505372987,0.04476433,157.61,157.57,11.0295347]
[1724505373186,0.04476433,157.61,157.57,7.8580347]
[1724505373791,3.1711,157.6,157.57,7.8580347]
[1724505374285,3.1713,157.59,157.57,7.8580347]
[1724505376399,0.04476433,157.61,157.58,7.81]
[1724505376590,0.04476433,157.61,157.57,0.0480347]
[1724505376787,3.1715,157.58,157.57,0.0480347]
[1724505381999,3.1715,157.58,157.57,3.16003456]
[1724505382200,3.1715,157.58,157.57,0.0480347]
[1724505384100,10.9815,157.58,157.57,0.0480347]
[1724505384297,10.9815,157.58,157.5,47.20972698]
[1724505384298,7.81,157.58,157.5,55.01972698]
[1724505384498,7.81,157.58,157.51,3.11242458]
[1724505384798,7.81,157.58,157.52,3.11242458]
[1724505384998,7.81,157.58,157.5,9.1482]
[1724505384999,7.81,157.56,157.53,3.11242458]
[1724505385305,3.1723,157.54,157.53,0.0485345]
[1724505385696,3.1723,157.54,157.53,3.16158751]
[1724505385897,3.1723,157.54,157.53,0.0485345]
[1724505386098,3.1721,157.55,157.53,3.1614344]
[1724505386362,3.1721,157.55,157.53,0.0485345]
[1724505387499,3.1723,157.54,157.53,0.0485345]
[1724505393807,10.9823,157.54,157.53,0.0485345]
[1724505394609,10.9823,157.54,157.43,49.7687237]
[1724505394610,7.81,157.54,157.43,49.7687237]
[1724505394811,7.81,157.49,157.44,3.11383523]
[1724505395004,7.81,157.49,157.45,6.28793523]
[1724505395304,7.81,157.49,157.46,3.11383523]
[1724505395608,7.85593241,157.49,157.46,0.04661623]
[1724505395808,3.1735,157.48,157.46,0.04661623]
[1724505401709,3.21923241,157.49,157.46,0.04661623]
[1724505402014,0.04593241,157.49,157.46,0.04661623]
[1724505402414,3.21923241,157.49,157.46,0.04661623]
[1724505405113,3.1737,157.47,157.46,0.04661623]
[1724505409714,3.1735,157.48,157.46,0.04661623]
[1724505409913,7.85593241,157.49,157.46,0.04661623]
[1724505410116,0.04593241,157.49,157.46,0.04661623]
[1724505410911,3.1736,157.48,157.46,0.04661623]
[1724505411110,0.04593241,157.49,157.46,0.04661623]
[1724505412315,3.1735,157.48,157.46,0.04661623]
[1724505416819,3.1737,157.47,157.46,0.04661623]
[1724505421222,7.81,157.48,157.4,3.175]
[1724505421422,7.81,157.45,157.4,3.175]
[1724505421728,3.1745,157.43,157.4,3.175]
[1724505422119,3.21622337,157.43,157.4,3.22334898]
[1724505424927,3.1747,157.42,157.4,3.22334898]
[1724505426423,3.1747,157.42,157.4,0.04834898]
[1724505426827,3.1749,157.41,157.4,0.04834898]
[1724505437038,10.9849,157.41,157.4,0.04834898]
[1724505439352,39.05,157.41,157.21,226.0]
[1724505439542,7.81,157.32,157.25,3.8077]
[1724505439736,7.81,157.32,157.26,10.92843587]
[1724505439932,7.81,157.32,157.28,3.1775]
[1724505439933,3.1771,157.31,157.28,3.1775]
[1724505440130,3.22508546,157.31,157.28,3.1775]
[1724505440433,3.22508546,157.31,157.28,3.22011752]
[1724505441044,0.04798546,157.31,157.28,3.22011752]
[1724505442833,3.22488546,157.31,157.28,3.22011752]
[1724505445748,3.1771,157.3,157.28,0.04261752]
[1724505449254,3.1773,157.29,157.28,0.04261752]
[1724505452453,0.04798546,157.31,157.28,0.04261752]
[1724505453461,3.1771,157.3,157.28,0.04261752]
[1724505454855,0.04798546,157.31,157.28,7.85261752]
[1724505456560,0.04798546,157.31,157.29,3.1773]
[1724505468676,0.04798546,157.31,157.3,3.1771]
[1724505469388,0.04798546,157.31,157.28,0.04261752]
[1724505469578,7.85798546,157.31,157.28,0.04261752]
[1724505469781,3.1772,157.3,157.28,0.04261752]
[1724505471380,3.1772,157.3,157.28,3.22011752]
[1724505472472,11.03498546,157.31,157.28,3.22011752]
[1724505473576,3.1772,157.3,157.28,0.04261752]
[1724505474972,10.9873,157.29,157.28,0.04261752]
[1724505482084,3.1781,157.25,157.22,3.1786]
[1724505483181,3.2260468,157.25,157.22,3.22735179]
[1724505489212,3.1784,157.24,157.22,0.04875179]
[1724505491083,3.2261468,157.25,157.22,3.22745179]
[1724505491887,7.81,157.24,157.22,0.04875179]
[1724505493086,10.9885,157.23,157.22,0.04875179]
[1724505494392,10.9884,157.24,157.22,0.04875179]
[1724505495392,3.1785,157.23,157.22,0.04875179]
[1724505499100,10.9885,157.23,157.22,0.04875179]
[1724505500501,3.1785,157.23,157.22,0.04875179]
[1724505508506,0.0479468,157.25,157.22,0.04875179]
[1724505509707,0.0479468,157.25,157.23,3.1785]
[1724505513616,0.0479468,157.25,157.24,10.9883]
[1724505513807,7.81,157.31,157.24,10.93061202]
[1724505514008,7.81,157.31,157.24,7.81]
[1724505514213,60.80029232,157.33,157.24,3.21830863]
[1724505514214,92.04029232,157.33,157.24,3.21830863]
[1724505514519,7.81,157.29,157.24,3.21830863]
[1724505514708,0.04506651,157.28,157.25,0.0417781]
[1724505515719,0.04506651,157.28,157.25,3.2197781]
[1724505516309,3.22256651,157.28,157.25,3.2197781]
[1724505516618,7.85506651,157.28,157.25,0.0417781]
[1724505517009,3.1778,157.27,157.25,0.0417781]
[1724505518815,3.1779,157.26,157.25,0.0417781]
[1724505519021,10.9879,157.26,157.25,0.0417781]
[1724505520223,7.81,157.26,157.18,1.2308]
[1724505520424,7.81,157.22,157.19,3.12180624]
[1724505520724,7.81,157.23,157.2,3.12180624]
[1724505521019,7.81,157.23,157.19,3.1793]
[1724505521219,7.85776852,157.23,157.2,3.16822597]
[1724505521411,7.85776852,157.23,157.2,0.04649223]
[1724505522417,3.1787,157.22,157.2,0.04649223]
[1724505525420,3.1787,157.22,157.2,3.22559223]
[1724505525731,3.22636852,157.23,157.2,3.22559223]
[1724505531226,3.22636852,157.23,157.21,3.12168246]
[1724505531426,3.22636852,157.23,157.2,3.22559223]
[1724505531719,3.22636852,157.23,157.21,3.12168305]
[1724505531927,3.22636852,157.23,157.2,3.22559223]
[1724505532920,3.1787,157.22,157.2,0.04649223]
[1724505533127,10.9887,157.22,157.2,0.04649223]
[1724505533522,10.9889,157.21,157.2,0.04649223]
[1724505533825,10.9889,157.21,157.2,3.16833052]
[1724505535130,10.9889,157.21,157.2,0.04649223]
[1724505542333,0.04776852,157.23,157.2,0.04649223]
[1724505542535,0.04776852,157.23,157.21,3.12188582]
[1724505542832,7.81,157.22,157.2,0.04649223]
[1724505543032,3.1789,157.21,157.2,0.04649223]
[1724505543335,3.1789,157.21,157.2,3.16856603]
[1724505543336,10.9889,157.21,157.2,3.16856603]
[1724505543835,10.9889,157.21,157.2,0.04649223]
[1724505545229,10.9889,157.21,157.2,3.16884604]
[1724505545535,10.9889,157.21,157.2,0.04649223]
[1724505547731,10.9889,157.21,157.2,3.16876998]
[1724505549851,10.9889,157.21,157.2,0.04649223]
[1724505550038,10.9889,157.21,157.2,3.16866849]
[1724505550240,10.9889,157.21,157.2,0.04649223]
[1724505550535,10.9889,157.21,157.2,3.16864301]
[1724505550937,0.04776852,157.23,157.2,3.16864301]
[1724505551437,0.04776852,157.23,157.2,0.04649223]
[1724505551733,0.04776852,157.23,157.21,6.30085078]
[1724505551929,0.04776852,157.23,157.2,0.04649223]
[1724505551930,0.04776852,157.23,157.22,3.12215078]
[1724505552537,3.22626852,157.23,157.22,3.12215078]
[1724505552839,3.22626852,157.23,157.2,3.22559223]
[1724505553140,3.22626852,157.23,157.21,3.12146426]
[1724505553440,3.22626852,157.23,157.2,3.22559223]
[1724505553938,3.22626852,157.23,157.21,3.12148023]
[1724505554142,3.22626852,157.23,157.22,3.12148023]
[1724505554533,3.22626852,157.23,157.21,3.12148023]
[1724505554734,3.22626852,157.23,157.22,3.12148023]
[1724505555228,0.04776852,157.23,157.22,3.12148023]
[1724505556637,60.80029232,157.33,157.22,14.09139293]
[1724505556942,7.81,157.29,157.23,3.12148023]
[1724505557132,3.1776,157.28,157.24,6.29968023]
[1724505557334,3.1776,157.28,157.25,3.12148023]
[1724505557543,0.04096471,157.28,157.26,3.12071138]
[1724505557739,3.21856471,157.28,157.25,0.04599139]
[1724505557938,3.21856471,157.28,157.26,3.12052881]
[1724505558242,3.21856471,157.28,157.25,0.04599139]
[1724505558444,3.21856471,157.28,157.26,3.12052881]
[1724505558743,3.21856471,157.28,157.25,0.04599139]
[1724505559037,3.21856471,157.28,157.26,3.12055427]
[1724505559242,3.21856471,157.28,157.25,0.04599139]
[1724505559440,3.21856471,157.28,157.26,3.12055428]
[1724505559639,3.21856471,157.28,157.25,0.04599139]
[1724505559942,3.21856471,157.28,157.26,3.12055428]
[1724505560141,3.21856471,157.28,157.25,0.04599139]
[1724505560749,3.21856471,157.28,157.26,3.12055418]
[1724505561040,3.21856471,157.28,157.25,0.04599139]
[1724505561247,3.21856471,157.28,157.26,3.12055418]
[1724505561448,3.21856471,157.28,157.25,0.04599139]
[1724505561746,3.21856471,157.28,157.25,3.22399139]
[1724505562247,0.04096471,157.28,157.27,3.1777]
[1724505562449,0.04096471,157.28,157.25,0.04599139]
[1724505562644,0.04096471,157.28,157.26,6.29830248]
[1724505562846,0.04096471,157.28,157.26,3.1778]
[1724505563944,0.04096471,157.28,157.25,0.04599139]
[1724505563945,6.3503,157.4,157.28,3.1773]
[1724505564140,7.81,157.32,157.27,3.11996459]
[1724505564348,7.81,157.32,157.28,3.11984399]
[1724505564552,3.177,157.31,157.27,3.1776]
[1724505564852,3.22520381,157.31,157.28,3.11984399]
[1724505565056,3.1771,157.3,157.27,3.22441096]
[1724505565260,10.9871,157.3,157.28,3.1196564]
[1724505565564,10.9871,157.3,157.27,0.04681096]
[1724505565751,0.04820381,157.31,157.27,0.04681096]
[1724505565953,0.04820381,157.31,157.28,3.11973273]
[1724505566153,0.04820381,157.31,157.27,0.04681096]
[1724505566356,0.04820381,157.31,157.28,6.29702916]
[1724505566557,0.04820381,157.31,157.28,3.1773]
[1724505569160,0.04820381,157.31,157.29,3.1773]
[1724505574662,0.04820381,157.31,157.28,3.1774]
[1724505575769,0.04820381,157.31,157.27,0.04681096]
[1724505576471,3.22520381,157.31,157.27,3.22431096]
[1724505577658,3.1771,157.3,157.27,3.22431096]
[1724505578270,3.1774,157.29,157.27,0.04681096]
[1724505578469,7.81,157.3,157.27,0.04681096]
[1724505578859,3.1774,157.29,157.27,0.04681096]
[1724505579267,7.81,157.29,157.27,0.04681096]
[1724505579969,3.1775,157.28,157.27,0.04681096]
[1724505580470,7.81,157.29,157.19,28.0877]
[1724505580671,7.81,157.25,157.19,28.0877]
[1724505581068,3.1783,157.24,157.19,28.0877]
[1724505581366,3.22719869,157.24,157.21,0.04781259]
[1724505583269,3.1785,157.23,157.21,0.04781259]
[1724505584773,3.1787,157.22,157.21,0.04781259]
[1724505588571,10.9887,157.22,157.21,0.04781259]
[1724505591675,3.1787,157.22,157.21,0.04781259]
[1724505601880,3.1786,157.23,157.21,0.04781259]
[1724505602092,7.85889869,157.24,157.21,0.04781259]
[1724505603386,3.1787,157.22,157.21,0.04781259]
[1724505605877,10.9887,157.22,157.21,0.04781259]
[1724505610587,0.04889869,157.24,157.21,0.04781259]
[1724505610889,0.04889869,157.24,157.21,11.0966442]
[1724505611290,0.04889869,157.24,157.22,3.1786]
[1724505611485,0.04889869,157.24,157.21,11.0966442]
[1724505611685,0.04889869,157.24,157.22,3.12116556]
[1724505611992,0.04889869,157.24,157.21,14.2754442]
[1724505612191,0.04889869,157.24,157.22,3.12099059]
[1724505612699,0.04889869,157.24,157.21,14.2754442]
[1724505613188,0.04889869,157.24,157.22,3.12101605]
[1724505613381,0.04889869,157.24,157.21,14.2754442]
[1724505613586,0.04889869,157.24,157.22,6.29971605]
[1724505613790,0.04889869,157.24,157.22,3.1787]
[1724505615793,3.22719869,157.24,157.22,3.1787]
[1724505616491,0.04889869,157.24,157.22,3.1787]
[1724505617597,0.04889869,157.24,157.21,11.0966442]
[1724505617894,0.04889869,157.24,157.22,3.12099059]
[1724505618083,0.04889869,157.24,157.22,3.1786]
[1724505619198,0.04889869,157.24,157.23,3.12099059]
[1724505619695,0.04889869,157.24,157.22,3.1786]
[1724505621990,0.04889869,157.24,157.21,11.09360167]
[1724505621991,0.04889869,157.24,157.23,10.9885]
[1724505622296,0.04889869,157.24,157.23,14.10949626]
[1724505622597,3.1776,157.28,157.24,3.1782]
[1724505622899,7.81,157.3,157.24,3.1782]
[1724505623119,3.1776,157.28,157.25,6.29844172]
[1724505623297,3.1776,157.28,157.25,9.41873725]
[1724505623601,3.1776,157.28,157.25,6.34210206]
[1724505623602,3.222723,157.28,157.25,6.34210206]
[1724505624007,3.1777,157.27,157.25,3.16410206]
[1724505626097,3.222623,157.28,157.25,6.34220206]
[1724505627196,3.1779,157.27,157.25,3.16410206]
[1724505631499,3.1779,157.27,157.25,0.04366034]
[1724505634910,0.045123,157.28,157.25,0.04366034]
[1724505635198,0.045123,157.28,157.25,7.85366034]
[1724505635598,0.045123,157.28,157.25,11.03166034]
[1724505635599,3.222623,157.28,157.25,11.03166034]
[1724505636000,3.222623,157.28,157.25,7.85366034]
[1724505636204,0.045123,157.28,157.27,7.81]
[1724505636399,7.81,157.36,157.27,7.81]
[1724505636599,3.9621,157.39,157.29,7.81]
[1724505636803,7.81,157.36,157.29,11.03649961]
[1724505637306,0.04064789,157.34,157.31,0.04629226]
[1724505638309,3.1765,157.33,157.31,0.04629226]
[1724505639010,0.04064789,157.34,157.31,0.04629226]
[1724505639604,3.1765,157.33,157.31,0.04629226]
[1724505640202,3.21694789,157.34,157.31,0.04629226]
[1724505640405,3.21694789,157.34,157.31,7.85629226]
[1724505641110,3.21694789,157.34,157.31,0.04629226]
[1724505641402,3.21694789,157.34,157.31,7.85629226]
[1724505642205,3.21694789,157.34,157.31,11.03319226]
[1724505643911,3.1765,157.33,157.31,0.04629226]
[1724505644112,0.04064789,157.34,157.31,0.04629226]
[1724505644605,3.1766,157.33,157.31,0.04629226]
[1724505645107,10.9867,157.32,157.31,0.04629226]
[1724505645411,6.3512,157.38,157.25,3.1781]
[1724505645613,7.81,157.3,157.25,3.1781]
[1724505645799,7.81,157.3,157.25,10.9881]
[1724505646024,3.1774,157.29,157.25,10.9881]
[1724505646204,3.22079935,157.29,157.25,11.03221811]
[1724505650211,3.1775,157.28,157.25,3.22221811]
[1724505660114,3.1775,157.28,157.25,11.03221811]
[1724505660510,3.22089935,157.29,157.26,3.1778]
[1724505660714,0.04339935,157.29,157.25,7.85411811]
[1724505661217,3.22079935,157.29,157.26,3.1779]
[1724505661418,0.04339935,157.29,157.25,0.04411811]
[1724505661822,3.1776,157.28,157.25,3.22211811]
[1724505663916,3.22069935,157.29,157.26,3.1779]
[1724505664224,3.22069935,157.29,157.25,0.04411811]
[1724505664620,3.22069935,157.29,157.26,3.1777]
[1724505666220,3.22069935,157.29,157.28,3.1775]
[1724505666221,0.04339935,157.29,157.28,3.1775]
[1724505667720,1.3452,157.37,157.28,7.81]
[1724505667920,1.3452,157.37,157.3,7.81]
[1724505668228,1.3452,157.37,157.3,10.97696948]
[1724505668431,3.1764,157.34,157.3,10.9869]
[1724505668930,0.04177839,157.34,157.3,0.04683117]
[1724505669127,7.81,157.32,157.3,0.04683117]
[1724505670425,3.1769,157.31,157.3,0.04683117]
[1724505672329,10.9869,157.31,157.3,0.04683117]
[1724505680438,3.1769,157.31,157.3,0.04683117]
[1724505685551,0.04177839,157.34,157.3,0.04683117]
[1724505685752,0.04177839,157.34,157.3,7.85683117]
[1724505686141,3.1766,157.33,157.3,11.03383117]
[1724505687946,3.1766,157.33,157.3,3.22383117]
[1724505689658,3.21807839,157.34,157.31,3.1768]
[1724505689860,0.04177839,157.34,157.3,0.04683117]
[1724505691457,3.1765,157.33,157.3,3.22383117]
[1724505692259,0.04177839,157.34,157.3,7.85683117]
[1724505692459,0.04177839,157.34,157.32,7.81]
[1724505692963,0.04177839,157.34,157.32,10.9867]
[1724505693161,0.04177839,157.34,157.32,7.81]
[1724505694160,0.04177839,157.34,157.3,1.39283117]
[1724505694358,0.04177839,157.34,157.31,3.11922041]
[1724505694663,0.04177839,157.34,157.3,1.39283117]
[1724505695163,3.1765,157.33,157.31,3.11922099]
[1724505695357,3.1765,157.33,157.3,4.56973117]
[1724505695559,3.1765,157.33,157.31,3.11923034]
[1724505695761,3.1765,157.33,157.3,4.56973117]
[1724505695963,3.1765,157.33,157.31,3.11923034]
[1724505696165,3.1765,157.33,157.3,4.56973117]
[1724505696369,3.1765,157.33,157.31,3.11923034]
[1724505696664,3.1765,157.33,157.3,4.56973117]
[1724505696859,3.1765,157.33,157.31,3.11923034]
[1724505697063,3.1765,157.33,157.3,4.56973117]
[1724505697266,3.1765,157.33,157.31,3.11923034]
[1724505697466,3.1765,157.33,157.3,4.56973117]
[1724505697769,3.1765,157.33,157.31,3.11923034]
[1724505697969,3.1765,157.33,157.3,4.56973117]
[1724505698468,3.1765,157.33,157.31,3.11923034]
[1724505698665,3.1765,157.33,157.3,4.56973117]
[1724505698866,3.1765,157.33,157.31,3.11923072]
[1724505699167,3.1765,157.33,157.3,4.56973117]
[1724505699362,3.1765,157.33,157.31,3.11923034]
[1724505699564,3.1765,157.33,157.3,4.56973117]
[1724505699764,3.1765,157.33,157.31,3.11923365]
[1724505699966,3.1765,157.33,157.3,4.56973117]
[1724505700268,7.85177839,157.34,157.3,0.04683117]
[1724505700866,3.1769,157.31,157.3,0.04683117]
[1724505701066,10.9869,157.31,157.3,0.04683117]
[1724505703663,3.1769,157.31,157.3,0.04683117]
[1724505703868,10.9869,157.31,157.3,0.04683117]
[1724505706664,3.1769,157.31,157.3,0.04683117]
[1724505714880,10.9869,157.31,157.3,0.04683117]
[1724505717279,7.81,157.31,157.3,0.04683117]
[1724505717582,7.85177839,157.34,157.3,3.16660372]
[1724505717788,7.85177839,157.34,157.3,0.04683117]
[1724505717979,3.1769,157.31,157.3,0.04683117]
[1724505718587,3.1769,157.31,157.3,3.16660526]
[1724505718781,0.04177839,157.34,157.3,3.16660526]
[1724505718980,0.04177839,157.34,157.3,0.04683117]
[1724505719381,3.1766,157.33,157.3,0.04683117]
[1724505720284,0.04177839,157.34,157.3,0.04683117]
[1724505720479,0.04177839,157.34,157.31,3.11930654]
[1724505720679,0.04177839,157.34,157.3,7.85683117]
[1724505720680,0.04177839,157.34,157.33,7.81]
[1724505720879,0.04177839,157.34,157.33,14.10554132]
[1724505721108,0.04177839,157.34,157.33,10.9865]
[1724505721281,0.04177839,157.34,157.33,7.81]
[1724505721984,0.04177839,157.34,157.33,10.92844289]
[1724505723386,0.04177839,157.34,157.33,14.10494289]
[1724505723788,60.06529857,157.39,157.33,10.92844289]
[1724505723990,63.24069857,157.39,157.36,7.81]
[1724505724889,63.2895908,157.39,157.36,7.85783903]
[1724505725086,3.1755,157.38,157.36,0.04783903]
[1724505725287,60.1141908,157.39,157.36,0.04783903]
[1724505725889,3.1755,157.38,157.36,0.04783903]
[1724505730187,3.1757,157.37,157.36,0.04783903]
[1724505730390,10.9857,157.37,157.36,0.04783903]
[1724505730788,3.1762,157.35,157.31,3.1768]
[1724505730983,7.81,157.35,157.31,3.1768]
[1724505731287,7.81,157.35,157.29,7.81]
[1724505731488,7.81,157.35,157.3,3.11920379]
[1724505731690,7.81,157.35,157.29,7.81]
[1724505731884,7.81,157.32,157.3,3.1674096]
[1724505732083,7.81,157.32,157.3,0.04820621]
[1724505732688,3.1769,157.31,157.3,0.04820621]
[1724505747800,3.1768,157.32,157.3,0.04820621]
[1724505748001,0.04092856,157.34,157.3,7.85820621]
[1724505748506,3.21732856,157.34,157.3,11.03520621]
[1724505749401,3.1765,157.33,157.3,11.03520621]
[1724505749802,0.04092856,157.34,157.3,7.85820621]
[1724505750198,0.04092856,157.34,157.31,3.11884177]
[1724505750399,0.04092856,157.34,157.3,7.85820621]
[1724505750600,0.04092856,157.34,157.31,3.11884195]
[1724505750900,0.04092856,157.34,157.31,3.1768]
[1724505751100,0.04092856,157.34,157.31,7.81]
[1724505751405,0.04092856,157.34,157.33,10.9865]
[1724505751606,0.04092856,157.34,157.33,14.10485563]
[1724505759939,0.04092856,157.34,157.33,10.9865]
[1724505761017,0.04092856,157.34,157.33,14.10440229]
[1724505761509,0.04092856,157.34,157.33,14.10440561]
[1724505763814,0.04092856,157.34,157.33,14.1044054]
[1724505764315,0.04092856,157.34,157.33,10.9865]
[1724505765113,0.04092856,157.34,157.33,3.1765]
[1724505768614,0.04092856,157.34,157.33,10.9865]
[1724505781427,0.04092856,157.34,157.33,14.10440617]
[1724505786534,0.04092856,157.34,157.33,14.10438014]
[1724505787152,0.04092856,157.34,157.33,10.9865]
[1724505787438,0.04092856,157.34,157.33,14.10440889]
[1724505787731,0.04092856,157.34,157.33,6.29440889]
[1724505788036,0.04092856,157.34,157.33,14.10440889]
[1724505788335,0.04092856,157.34,157.33,6.29440889]
[1724505788528,0.04092856,157.34,157.33,14.10440889]
[1724505789029,0.04092856,157.34,157.33,3.11790889]
[1724505789437,0.04092856,157.34,157.32,3.1767]
[1724505792136,0.04092856,157.34,157.32,10.9867]
[1724505792439,0.04092856,157.34,157.33,3.1766]
[1724505792627,9.516,157.56,157.33,7.81]
[1724505792834,7.81,157.44,157.35,7.81]
[1724505793034,7.81,157.44,157.37,7.81]
[1724505793833,3.1751,157.4,157.39,0.04526494]
[1724505794029,0.04625155,157.42,157.39,0.04526494]
[1724505794433,3.1751,157.4,157.39,0.04526494]
[1724505795935,3.175,157.41,157.39,0.04526494]
[1724505796237,3.175,157.41,157.4,7.81]
[1724505798635,0.04625155,157.42,157.4,7.81]
[1724505798833,0.04625155,157.42,157.41,10.9849]
[1724505800237,3.796,157.5,157.41,10.9849]